bitfinex/quotes_SOLUSD_20250424
["timestamp","ask_amount","ask_price","bid_price","bid_amount"]
[1745507357301,16.8739777,150.95,150.91,16.8739777]
[1745507357501,16.8739777,150.96,150.92,16.8739777]
[1745507359311,16.8739777,150.94,150.85,21.20880374]
[1745507359525,16.8739777,150.92,150.88,16.8739777]
[1745507359849,16.8739777,150.89,150.8,6.63117875]
[1745507359993,16.8739777,150.88,150.83,16.8739777]
[1745507360199,16.8739777,150.88,150.8,32.63117875]
[1745507360200,16.8739777,150.88,150.84,16.8739777]
[1745507360615,24.8938777,150.91,150.87,16.8739777]
[1745507360912,8.0199,150.91,150.89,16.8739777]
[1745507361092,1.5677,150.91,150.89,16.8739777]
[1745507361692,1.5677,150.91,150.87,16.8739777]
[1745507362014,25.06820674,150.91,150.86,16.8739777]
[1745507362219,16.8739777,150.9,150.85,16.8739777]
[1745507362714,16.8739777,150.89,150.85,16.8739777]
[1745507363606,16.8739777,150.9,150.85,16.8739777]
[1745507363808,1.5677,150.91,150.89,16.8739777]
[1745507364313,39.4773777,150.95,150.9,16.8739777]
[1745507364633,39.4773777,150.95,150.91,16.8739777]
[1745507364999,16.8739777,150.94,150.9,16.8739777]
[1745507365319,16.8739777,150.94,150.86,25.27790386]
[1745507365513,16.8739777,150.94,150.9,16.8739777]
[1745507365822,22.6034,150.95,150.91,16.8739777]
[1745507366046,8.0234,150.95,150.92,16.8739777]
[1745507366494,1.5712,150.95,150.93,16.8739777]
[1745507366990,1.5712,150.95,150.89,18.64964886]
[1745507367194,1.5712,150.95,150.9,6.62690523]
[1745507367519,1.5712,150.95,150.92,16.8739777]
[1745507368205,0.03,150.96,150.92,16.8739777]
[1745507368406,0.03,150.96,150.93,16.8739777]
[1745507369021,0.03,150.96,150.9,6.62690523]
[1745507369197,0.03,150.96,150.92,16.8739777]
[1745507369620,0.03,150.96,150.9,6.62690523]
[1745507369621,0.03,150.96,150.94,16.8739777]
[1745507369933,0.03,150.96,150.92,16.8739777]
[1745507371133,16.8739777,150.94,150.9,16.8739777]
[1745507371340,16.8739777,150.94,150.85,16.57196657]
[1745507371341,16.8739777,150.93,150.88,16.8739777]
[1745507371507,16.8739777,150.94,150.89,16.8739777]
[1745507371700,0.03,150.96,150.9,16.8739777]
[1745507371899,16.8739777,150.95,150.91,16.8739777]
[1745507372327,16.9039777,150.96,150.91,16.8739777]
[1745507372524,0.03,150.96,150.9,16.8739777]
[1745507372703,16.8739777,150.94,150.9,16.8739777]
[1745507372900,16.8739777,150.95,150.9,16.8739777]
[1745507373225,16.8739777,150.95,150.91,16.8739777]
[1745507373410,16.8739777,150.94,150.9,16.8739777]
[1745507373796,16.8739777,150.92,150.88,16.8739777]
[1745507374000,16.8739777,150.91,150.87,16.8739777]
[1745507374616,16.8739777,150.92,150.88,16.8739777]
[1745507374929,6.624961,150.95,150.88,16.8739777]
[1745507375225,16.8739777,150.92,150.86,6.62856324]
[1745507375525,16.8739777,150.92,150.88,16.8739777]
[1745507376932,16.8739777,150.92,150.86,6.62846914]
[1745507377108,16.8739777,150.92,150.88,16.8739777]
[1745507377426,16.8739777,150.9,150.85,16.8739777]
[1745507377628,16.8739777,150.89,150.84,16.8739777]
[1745507378331,16.8739777,150.89,150.85,16.8739777]
[1745507378728,16.8739777,150.88,150.83,16.8739777]
[1745507379033,16.8739777,150.87,150.82,16.8739777]
[1745507379229,16.8739777,150.86,150.82,16.8739777]
[1745507379423,16.8739777,150.87,150.83,16.8739777]
[1745507379737,31.4539777,150.9,150.86,16.8739777]
[1745507380540,31.4539777,150.9,150.85,16.8739777]
[1745507381230,14.58,150.9,150.87,16.8739777]
[1745507381533,14.58,150.94,150.89,16.8739777]
[1745507381835,31.4539777,150.94,150.89,16.8739777]
[1745507382013,16.8739777,150.93,150.89,16.8739777]
[1745507383720,0.03,150.96,150.89,16.8739777]
[1745507383909,16.8739777,150.93,150.89,16.8739777]
[1745507384339,16.8739777,150.9,150.83,25.27962963]
[1745507384540,16.8739777,150.88,150.84,16.8739777]
[1745507384745,16.8739777,150.9,150.85,16.8739777]
[1745507385635,16.8739777,150.89,150.85,16.8739777]
[1745507387548,16.8739777,150.87,150.82,16.8739777]
[1745507387749,16.8739777,150.85,150.8,0.063]
[1745507387937,16.8739777,150.85,150.8,16.9369777]
[1745507388127,16.8739777,150.85,150.8,0.063]
[1745507388318,16.8739777,150.84,150.8,16.9369777]
[1745507388643,16.8739777,150.85,150.81,16.8739777]
[1745507388858,16.8739777,150.87,150.83,16.8739777]
[1745507389638,16.8739777,150.88,150.84,16.8739777]
[1745507389925,37.6117777,150.9,150.85,16.8739777]
[1745507390117,37.6117777,150.9,150.81,18.64964886]
[1745507390323,16.8739777,150.88,150.83,16.8739777]
[1745507390738,16.8739777,150.87,150.83,16.8739777]
[1745507391122,16.8739777,150.87,150.83,23.50394738]
[1745507391337,16.8739777,150.88,150.83,23.50394738]
[1745507392359,14.58,150.9,150.86,16.8739777]
[1745507392717,31.4539777,150.9,150.85,23.50293833]
[1745507393148,31.4539777,150.9,150.85,16.8739777]
[1745507393418,16.8739777,150.89,150.85,23.50296231]
[1745507394065,31.4539777,150.9,150.85,16.8739777]
[1745507394369,31.4539777,150.9,150.84,6.62938505]
[1745507394370,16.8739777,150.86,150.8,0.063]
[1745507394546,14.58,150.9,150.8,0.063]
[1745507394747,16.8739777,150.87,150.83,16.8739777]
[1745507395280,31.4539777,150.9,150.86,16.8739777]
[1745507395678,31.4539777,150.9,150.85,16.8739777]
[1745507397082,16.8739777,150.89,150.85,16.8739777]
[1745507397487,16.8739777,150.89,150.84,16.8739777]
[1745507397783,16.8739777,150.87,150.81,18.64964886]
[1745507398076,16.8739777,150.87,150.8,6.69413699]
[1745507398264,16.8739777,150.86,150.81,16.8739777]
[1745507398470,16.8739777,150.87,150.83,16.8739777]
[1745507399400,16.8739777,150.87,150.81,6.63060908]
[1745507399688,16.8739777,150.85,150.8,25.34375848]
[1745507399895,16.8739777,150.84,150.8,16.9369777]
[1745507400488,16.8739777,150.85,150.81,16.8739777]
[1745507400861,16.8739777,150.88,150.83,16.8739777]
[1745507401864,16.8739777,150.89,150.84,16.8739777]
[1745507402089,31.4539777,150.9,150.86,16.8739777]
[1745507402392,31.4539777,150.9,150.85,16.8739777]
[1745507403179,31.4539777,150.9,150.85,23.50294316]
[1745507403371,16.8739777,150.89,150.85,16.8739777]
[1745507403584,16.8739777,150.89,150.83,6.62989279]
[1745507403773,16.8739777,150.89,150.85,16.8739777]
[1745507403959,31.4539777,150.9,150.85,16.8739777]
[1745507404366,31.4539777,150.9,150.86,16.8739777]
[1745507404569,14.58,150.9,150.83,6.62989279]
[1745507405383,1.6001,150.92,150.87,16.8739777]
[1745507405599,40.56,150.95,150.9,16.8739777]
[1745507405782,16.8739777,150.94,150.89,16.8739777]
[1745507405990,16.8739777,150.93,150.89,16.8739777]
[1745507406373,16.8739777,150.92,150.88,16.8739777]
[1745507407094,16.8739777,150.93,150.88,16.8739777]
[1745507407273,16.8739777,150.93,150.89,16.8739777]
[1745507407592,16.8739777,150.94,150.89,16.8739777]
[1745507407891,14.56,150.95,150.9,16.8739777]
[1745507407892,31.4339777,150.95,150.9,16.8739777]
[1745507408463,14.56,150.95,150.91,16.8739777]
[1745507408661,14.56,150.95,150.92,16.8739777]
[1745507409309,0.03,150.96,150.94,16.8739777]
[1745507409596,0.03,150.96,150.93,16.8739777]
[1745507409967,16.9039777,150.96,150.9,6.62690523]
[1745507410163,16.9039777,150.96,150.91,16.8739777]
[1745507410781,16.8739777,150.95,150.91,16.8739777]
[1745507411401,0.03,150.96,150.92,16.8739777]
[1745507411770,0.03,150.96,150.93,16.8739777]
[1745507411974,0.03,150.96,150.94,16.8739777]
[1745507412492,0.03,150.96,150.91,6.62646549]
[1745507412799,0.03,150.96,150.93,16.8739777]
[1745507413396,0.03,150.96,150.94,16.8739777]
[1745507413703,0.03,150.96,150.95,16.8739777]
[1745507413913,0.03,150.96,150.94,16.8739777]
[1745507414070,16.9039777,150.96,150.92,16.8739777]
[1745507414701,0.03,150.96,150.93,16.8739777]
[1745507415000,0.03,150.96,150.92,23.49999654]
[1745507415183,0.03,150.96,150.92,16.8739777]
[1745507415493,0.03,150.96,150.92,23.49990303]
[1745507415701,0.03,150.96,150.89,6.62734442]
[1745507415702,16.8739777,150.95,150.89,6.62734442]
[1745507415997,0.03,150.96,150.9,16.8739777]
[1745507416294,14.59,150.96,150.91,16.8739777]
[1745507416500,14.59,150.96,150.93,16.8739777]
[1745507416707,0.03,150.96,150.94,16.8739777]
[1745507417269,0.03,150.96,150.93,16.8739777]
[1745507417982,0.03,150.96,150.94,16.8739777]
[1745507418479,0.03,150.96,150.95,16.8739777]
[1745507419072,0.03,150.96,150.94,16.8739777]
[1745507419775,0.03,150.96,150.95,16.8739777]
[1745507421076,0.03,150.96,150.95,35.52362656]
[1745507421581,0.03,150.96,150.95,68.14833672]
[1745507422191,0.03,150.96,150.95,72.95268039]
[1745507422394,8.703437,151.06,150.95,91.16015581]
[1745507422395,5.48564472,151.06,150.95,91.16015581]
[1745507422676,14.56,151.08,151.02,16.8739777]
[1745507422872,16.8739777,151.06,151.01,16.8739777]
[1745507423585,16.8739777,151.06,151.02,6.62163951]
[1745507423790,16.8739777,151.06,151.01,23.49588006]
[1745507424209,16.8739777,151.05,151.0,26.0]
[1745507424398,16.8739777,151.03,150.97,32.62383254]
[1745507424597,16.8739777,151.03,150.99,16.8739777]
[1745507425105,16.8739777,151.06,151.01,16.8739777]
[1745507425298,44.56217959,151.11,151.02,16.8739777]
[1745507425606,16.8739777,151.06,151.01,16.8739777]
[1745507428790,16.8739777,151.05,151.01,16.8739777]
[1745507429108,6.61813368,151.1,151.01,16.8739777]
[1745507429311,16.8739777,151.06,151.02,16.8739777]
[1745507430089,16.8739777,151.06,151.01,16.8739777]
[1745507430287,16.8739777,151.06,151.02,16.8739777]
[1745507430617,6.61930433,151.08,151.02,16.8739777]
[1745507430781,16.8739777,151.07,151.02,16.8739777]
[1745507431734,6.61852316,151.1,151.03,16.8739777]
[1745507431901,16.8739777,151.08,151.03,16.8739777]
[1745507433129,16.8739777,151.07,151.03,16.8739777]
[1745507433999,23.49353211,151.07,150.99,26.0]
[1745507434211,23.49353211,151.07,151.02,16.8739777]
[1745507434610,23.49353211,151.07,151.03,16.8739777]
[1745507434819,6.61955441,151.07,151.03,16.8739777]
[1745507435228,6.61813368,151.1,151.05,16.8739777]
[1745507435408,6.61813368,151.1,151.05,10.76728171]
[1745507435727,6.61813368,151.1,151.0,18.64964886]
[1745507435728,10.76728171,151.09,151.04,10.76728171]
[1745507436032,6.61900979,151.08,151.04,10.76728171]
[1745507437801,6.61813368,151.1,151.04,10.76728171]
[1745507438104,10.76728171,151.09,151.04,10.76728171]
[1745507438306,10.76728171,151.08,151.04,10.76728171]
[1745507438727,10.76728171,151.09,151.04,10.76728171]
[1745507439198,6.61813368,151.1,151.04,10.76728171]
[1745507439400,10.76728171,151.09,151.04,10.76728171]
[1745507440027,17.38625954,151.09,151.04,10.76728171]
[1745507440328,10.76728171,151.08,151.04,10.76728171]
[1745507440522,17.38625954,151.09,151.04,10.76728171]
[1745507441207,6.61897783,151.09,151.0,25.2720952]
[1745507441405,17.38625954,151.09,151.0,25.2720952]
[1745507441612,17.38625954,151.09,151.04,10.76728171]
[1745507442327,17.38625954,151.09,151.0,25.2720952]
[1745507442520,17.38625954,151.09,151.04,10.76728171]
[1745507443738,1.6312,151.11,151.08,10.76728171]
[1745507443902,14.56,151.12,151.08,10.76728171]
[1745507444101,25.32728171,151.12,151.04,26.0]
[1745507444306,14.56,151.12,151.08,10.76728171]
[1745507444529,31.94461908,151.12,151.07,10.76728171]
[1745507444712,21.17733737,151.12,151.08,10.76728171]
[1745507444923,31.94461908,151.12,151.07,10.76728171]
[1745507445309,10.76728171,151.13,151.09,10.76728171]
[1745507445708,6.61690255,151.13,151.08,10.76728171]
[1745507445920,10.76728171,151.12,151.08,10.76728171]
[1745507446330,10.76728171,151.13,151.08,10.76728171]
[1745507446505,10.76728171,151.12,151.08,10.76728171]
[1745507447107,10.76728171,151.13,151.08,10.76728171]
[1745507447726,0.03,151.14,151.1,10.76728171]
[1745507448529,0.03,151.14,151.07,26.0]
[1745507448829,0.03,151.14,151.11,10.76728171]
[1745507449430,10.79728171,151.14,151.09,10.76728171]
[1745507449807,0.03,151.14,151.09,10.76728171]
[1745507450008,10.79728171,151.14,151.1,10.76728171]
[1745507450309,10.79728171,151.14,151.07,26.0]
[1745507450508,10.79728171,151.14,151.09,10.76728171]
[1745507450728,0.03,151.14,151.1,10.76728171]
[1745507451112,0.03,151.14,151.11,10.76728171]
[1745507451522,0.03,151.14,151.08,26.0]
[1745507451714,0.03,151.16,151.13,10.76728171]
[1745507451933,8.13168801,151.17,151.15,10.76728171]
[1745507452107,8.13168801,151.17,151.16,17.38278845]
[1745507452308,1.5164,151.24,151.16,36.03243731]
[1745507452636,35.16621785,151.29,151.17,44.64964886]
[1745507452836,35.16621785,151.29,151.2,43.06912684]
[1745507453039,41.77606873,151.29,151.24,10.76728171]
[1745507453541,16.92337608,151.28,151.24,10.76728171]
[1745507453842,10.76728171,151.27,151.23,10.76728171]
[1745507454016,10.76728171,151.26,151.22,10.76728171]
[1745507454338,10.31310892,151.28,151.19,26.0]
[1745507454517,10.76728171,151.23,151.19,10.76728171]
[1745507454718,10.76728171,151.23,151.18,10.76728171]
[1745507454927,10.76728171,151.23,151.19,10.76728171]
[1745507455148,10.76728171,151.24,151.19,10.76728171]
[1745507455436,16.7912876,151.24,151.19,16.7912876]
[1745507455747,16.7912876,151.21,151.16,16.7912876]
[1745507456038,16.7912876,151.2,151.15,16.7912876]
[1745507456210,16.7912876,151.2,151.16,16.7912876]
[1745507456614,16.7912876,151.19,151.09,6.4079]
[1745507456827,6.61348431,151.21,151.15,16.7912876]
[1745507457035,23.40373222,151.23,151.18,16.7912876]
[1745507457421,16.7912876,151.23,151.18,16.7912876]
[1745507457625,16.7912876,151.23,151.19,16.7912876]
[1745507457818,18.3641876,151.24,151.19,16.7912876]
[1745507458017,24.9762352,151.24,151.19,16.7912876]
[1745507458625,18.3641876,151.24,151.2,16.7912876]
[1745507458828,24.97629371,151.24,151.19,16.7912876]
[1745507459036,16.7912876,151.2,151.12,26.0]
[1745507459251,16.7912876,151.19,151.15,16.7912876]
[1745507459534,16.7912876,151.21,151.16,16.7912876]
[1745507459732,16.7912876,151.2,151.12,16.7912876]
[1745507460043,16.7912876,151.2,151.16,16.7912876]
[1745507460217,16.7912876,151.2,151.09,6.4079]
[1745507460218,16.7912876,151.17,151.09,6.4079]
[1745507460420,16.7912876,151.15,151.11,16.7912876]
[1745507460718,16.7912876,151.13,151.06,14.54]
[1745507460923,16.7912876,151.13,151.09,16.7912876]
[1745507461436,16.7912876,151.13,151.08,16.7912876]
[1745507461636,16.7912876,151.12,151.07,16.7912876]
[1745507462018,16.7912876,151.12,151.05,6.219]
[1745507462019,23.40874256,151.12,151.08,16.7912876]
[1745507462414,1.5292,151.16,151.09,16.7912876]
[1745507462619,1.5292,151.16,151.12,16.7912876]
[1745507462830,23.40649449,151.17,151.12,16.7912876]
[1745507463052,16.7912876,151.15,151.1,16.7912876]
[1745507463230,16.7912876,151.14,151.1,16.7912876]
[1745507463434,16.7912876,151.11,151.05,6.219]
[1745507463657,0.14216157,151.16,151.05,6.219]
[1745507463831,16.7912876,151.11,151.07,16.7912876]
[1745507464032,16.7912876,151.11,151.06,16.7912876]
[1745507464323,6.3091,151.18,151.08,16.7912876]
[1745507464552,16.7912876,151.13,151.08,16.7912876]
[1745507464858,16.7912876,151.15,151.1,16.7912876]
[1745507465219,16.7912876,151.15,151.11,16.7912876]
[1745507465421,6.61506912,151.17,151.11,16.7912876]
[1745507465621,16.7912876,151.16,151.12,16.7912876]
[1745507465844,16.7912876,151.18,151.13,16.7912876]
[1745507466040,16.7912876,151.19,151.15,16.7912876]
[1745507466346,16.7912876,151.2,151.15,16.7912876]
[1745507466550,16.7912876,151.21,151.17,16.7912876]
[1745507466736,16.7912876,151.22,151.17,16.7912876]
[1745507466923,31.3112876,151.23,151.18,16.7912876]
[1745507467123,6.5871,151.26,151.2,16.7912876]
[1745507467318,6.5871,151.26,151.14,26.0]
[1745507467319,14.52,151.27,151.22,16.7912876]
[1745507467527,10.34310892,151.3,151.2,42.7912876]
[1745507467748,10.34310892,151.3,151.21,6.537]
[1745507468049,16.8212876,151.3,151.26,16.7912876]
[1745507468353,0.03,151.3,151.27,16.7912876]
[1745507468538,0.03,151.3,151.22,25.26253075]
[1745507468539,16.8212876,151.3,151.22,25.26253075]
[1745507468770,16.8212876,151.3,151.26,16.7912876]
[1745507469593,0.03,151.3,151.28,26.83156113]
[1745507470245,0.03,151.3,151.29,26.83156113]
[1745507471794,0.03,151.3,151.23,32.61238702]
[1745507471945,26.83156113,151.28,151.21,13.1503069]
[1745507472352,26.86156113,151.3,151.26,26.83156113]
[1745507472589,0.03,151.3,151.26,26.83156113]
[1745507472760,26.86156113,151.3,151.26,26.83156113]
[1745507473288,0.03,151.3,151.29,26.83156113]
[1745507473464,0.03,151.3,151.26,26.83156113]
[1745507473649,0.03,151.3,151.28,26.83156113]
[1745507474487,0.03,151.3,151.27,26.83156113]
[1745507475020,0.03,151.3,151.28,26.83156113]
[1745507475788,0.03,151.3,151.25,6.61152903]
[1745507475789,0.03,151.3,151.29,26.83156113]
[1745507476689,0.03,151.3,151.29,33.44138332]
[1745507477895,0.03,151.3,151.29,26.83156113]
[1745507478377,0.03,151.3,151.29,33.44138332]
[1745507478578,0.03,151.3,151.29,6.60982219]
[1745507478778,0.03,151.3,151.29,52.09103218]
[1745507479005,0.03,151.3,151.29,33.44138332]
[1745507479607,0.03,151.3,151.24,26.14216157]
[1745507479795,0.03,151.3,151.29,26.83156113]
[1745507479986,0.03,151.3,151.25,25.2612191]
[1745507480381,0.03,151.3,151.27,26.83156113]
[1745507480601,0.03,151.3,151.24,14.5]
[1745507480790,26.83156113,151.28,151.22,6.61273739]
[1745507480992,26.83156113,151.28,151.23,26.83156113]
[1745507481199,0.03,151.3,151.24,26.83156113]
[1745507481402,0.03,151.3,151.25,26.83156113]
[1745507481703,0.03,151.3,151.27,26.83156113]
[1745507481881,0.03,151.3,151.28,26.83156113]
[1745507482283,0.03,151.3,151.29,26.83156113]
[1745507482580,0.03,151.3,151.29,33.44138332]
[1745507483593,0.03,151.3,151.29,52.09103218]
[1745507483811,0.03,151.3,151.29,33.44138332]
[1745507484781,0.03,151.3,151.29,52.09103218]
[1745507485109,0.03,151.3,151.29,58.59883218]
[1745507485308,0.918837,151.36,151.32,26.0]
[1745507485522,0.918837,151.36,151.35,26.83156113]
[1745507486313,0.918837,151.36,151.35,72.31277112]
[1745507486490,0.918837,151.36,151.35,52.08841184]
[1745507486888,0.918837,151.36,151.35,26.83156113]
[1745507487093,0.918837,151.36,151.35,33.43876298]
[1745507488010,0.918837,151.36,151.35,52.08841184]
[1745507488427,0.918837,151.36,151.35,104.91997297]
[1745507489022,33.47316113,151.46,151.36,18.64964886]
[1745507489346,1.5411,151.47,151.36,45.48120999]
[1745507489550,26.83156113,151.44,151.4,26.83156113]
[1745507489707,26.83156113,151.41,151.33,6.60807506]
[1745507489910,26.83156113,151.41,151.29,8.1267]
[1745507489911,26.83156113,151.38,151.3,6.60938532]
[1745507490236,6.5446,151.41,151.35,26.83156113]
[1745507490237,26.83156113,151.4,151.35,26.83156113]
[1745507490413,26.83156113,151.4,151.36,26.83156113]
[1745507490609,26.83156113,151.41,151.37,26.83156113]
[1745507490810,26.83156113,151.41,151.36,26.83156113]
[1745507491027,6.60375324,151.43,151.32,51.25816062]
[1745507491028,26.83156113,151.4,151.35,26.83156113]
[1745507491211,26.83156113,151.38,151.32,32.60851176]
[1745507491619,26.83156113,151.38,151.33,26.83156113]
[1745507492026,26.83156113,151.37,151.32,6.60851176]
[1745507492206,26.83156113,151.37,151.33,26.83156113]
[1745507492409,26.83156113,151.38,151.34,26.83156113]
[1745507492632,26.83156113,151.38,151.33,26.83156113]
[1745507492839,26.83156113,151.37,151.31,6.60894851]
[1745507493138,1.5633,151.39,151.29,14.5]
[1745507493337,26.83156113,151.31,151.27,6.6106961]
[1745507493512,26.83156113,151.3,151.26,26.83156113]
[1745507493847,26.83156113,151.31,151.26,26.83156113]
[1745507494023,14.48,151.35,151.24,6.6120074]
[1745507494024,26.83156113,151.34,151.3,26.83156113]
[1745507494213,26.83156113,151.36,151.32,26.83156113]
[1745507494542,42.87486113,151.39,151.35,26.83156113]
[1745507494835,42.87486113,151.39,151.34,26.83156113]
[1745507495021,26.83156113,151.38,151.34,26.83156113]
[1745507495738,42.87486113,151.39,151.34,26.83156113]
[1745507496260,26.83156113,151.38,151.33,6.60764452]
[1745507496439,26.83156113,151.38,151.34,26.83156113]
[1745507496753,16.0433,151.39,151.34,26.83156113]
[1745507497061,26.83156113,151.36,151.31,26.83156113]
[1745507497232,26.83156113,151.35,151.3,26.83156113]
[1745507497428,26.83156113,151.34,151.29,33.44138332]
[1745507497632,26.83156113,151.38,151.33,26.83156113]
[1745507497944,16.0433,151.39,151.35,26.83156113]
[1745507498153,42.87486113,151.39,151.34,26.83156113]
[1745507498329,26.83156113,151.37,151.33,26.83156113]
[1745507498530,26.83156113,151.37,151.32,26.83156113]
[1745507498831,26.83156113,151.34,151.29,26.83156113]
[1745507499038,1.5633,151.39,151.32,26.83156113]
[1745507499258,6.1919,151.41,151.36,26.83156113]
[1745507499456,16.1043,151.43,151.38,26.83156113]
[1745507499642,42.93586113,151.43,151.38,26.83156113]
[1745507499956,41.31156113,151.43,151.39,26.83156113]
[1745507500125,41.31156113,151.43,151.38,26.83156113]
[1745507500325,41.31156113,151.43,151.34,18.64964886]
[1745507500531,14.48,151.43,151.39,26.83156113]
[1745507500726,26.83156113,151.44,151.39,26.83156113]
[1745507501036,26.83156113,151.44,151.4,26.83156113]
[1745507501436,26.83156113,151.45,151.4,26.83156113]
[1745507501958,26.83156113,151.45,151.36,43.34833399]
[1745507502139,26.83156113,151.44,151.39,26.83156113]
[1745507502339,26.83156113,151.44,151.4,26.83156113]
[1745507502535,26.83156113,151.45,151.4,26.83156113]
[1745507502748,28.39766113,151.47,151.42,26.83156113]
[1745507503246,26.83156113,151.46,151.42,26.83156113]
[1745507503861,28.39766113,151.47,151.42,26.83156113]
[1745507504163,26.83156113,151.48,151.44,26.83156113]
[1745507504557,33.45656113,151.49,151.44,26.83156113]
[1745507504858,26.83156113,151.48,151.44,33.43475844]
[1745507505060,26.83156113,151.46,151.39,6.6054561]
[1745507505255,26.83156113,151.46,151.41,26.83156113]
[1745507505457,26.83156113,151.46,151.39,6.6054561]
[1745507505645,26.83156113,151.46,151.41,26.83156113]
[1745507505966,26.83156113,151.47,151.43,26.83156113]
[1745507506542,26.83156113,151.48,151.43,26.83156113]
[1745507506745,26.83156113,151.47,151.43,33.43510393]
[1745507506942,26.83156113,151.47,151.43,26.83156113]
[1745507507357,26.83156113,151.48,151.43,33.43525946]
[1745507507659,6.625,151.49,151.44,26.83156113]
[1745507507660,26.83156113,151.49,151.44,26.83156113]
[1745507508381,26.83156113,151.5,151.45,26.83156113]
[1745507508536,1.5433,151.51,151.46,26.83156113]
[1745507508743,26.83156113,151.51,151.46,33.43376932]
[1745507509340,6.6333,151.53,151.44,6.60327522]
[1745507509341,26.83156113,151.5,151.44,6.60327522]
[1745507509565,26.83156113,151.5,151.45,26.83156113]
[1745507509768,26.83156113,151.49,151.42,6.6041474]
[1745507510076,26.83156113,151.47,151.42,33.43570853]
[1745507510282,26.83156113,151.49,151.44,26.83156113]
[1745507510581,26.83156113,151.49,151.45,26.83156113]
[1745507511051,6.6333,151.53,151.46,26.83156113]
[1745507511245,26.83156113,151.5,151.46,26.83156113]
[1745507511644,16.73204298,151.47,151.4,6.60458562]
[1745507511861,16.73204298,151.52,151.41,16.73204298]
[1745507512054,16.73204298,151.46,151.41,16.73204298]
[1745507512253,16.73204298,151.45,151.41,16.73204298]
[1745507512477,1.555,151.51,151.41,16.73204298]
[1745507512777,16.73204298,151.44,151.4,16.73204298]
[1745507512975,16.73204298,151.42,151.34,6.5736]
[1745507513274,16.73204298,151.41,151.36,16.73204298]
[1745507513444,26.80459489,151.4,151.35,4.71531623]
[1745507513647,26.80459489,151.4,151.36,26.80459489]
[1745507513882,26.80459489,151.41,151.36,26.80459489]
[1745507514067,26.80459489,151.39,151.35,4.71531623]
[1745507514278,26.80459489,151.38,151.35,4.71531623]
[1745507514449,26.80459489,151.39,151.35,4.71531623]
[1745507514649,26.80459489,151.37,151.3,12.92625178]
[1745507514865,26.80459489,151.37,151.32,26.80459489]
[1745507515673,26.80459489,151.38,151.33,26.80459489]
[1745507515856,14.48,151.41,151.37,26.80459489]
[1745507516057,26.80459489,151.41,151.37,26.80459489]
[1745507516462,26.80459489,151.41,151.36,26.80459489]
[1745507516646,28.36769489,151.43,151.38,26.80459489]
[1745507516845,26.80459489,151.44,151.4,26.80459489]
[1745507517273,26.80459489,151.43,151.39,26.80459489]
[1745507517476,26.80459489,151.41,151.36,26.80459489]
[1745507517774,26.80459489,151.4,151.35,26.80459489]
[1745507518181,26.80459489,151.39,151.34,6.60750684]
[1745507518362,26.80459489,151.38,151.34,26.80459489]
[1745507518881,26.80459489,151.38,151.33,26.80459489]
[1745507519062,26.80459489,151.38,151.34,26.80459489]
[1745507519654,26.80459489,151.38,151.33,26.80459489]
[1745507520378,26.80459489,151.37,151.32,26.80459489]
[1745507520588,26.80459489,151.38,151.33,26.80459489]
[1745507520759,26.80459489,151.4,151.35,26.80459489]
[1745507520953,1.5028,151.42,151.36,26.80459489]
[1745507521183,26.80459489,151.37,151.33,26.80459489]
[1745507521365,26.80459489,151.36,151.31,6.60894851]
[1745507521549,8.10706367,151.42,151.3,28.60259489]
[1745507521550,26.80459489,151.35,151.3,28.60259489]
[1745507521756,26.80459489,151.33,151.3,1.798]
[1745507521956,26.80459489,151.34,151.3,8.40711195]
[1745507522154,26.80459489,151.34,151.3,35.21170684]
[1745507522355,26.80459489,151.35,151.3,35.21170684]
[1745507522768,26.80459489,151.34,151.3,28.60259489]
[1745507522978,26.80459489,151.34,151.3,1.798]
[1745507523165,6.6388,151.37,151.3,1.798]
[1745507523471,6.6388,151.37,151.31,26.80459489]
[1745507523662,26.80459489,151.36,151.32,26.80459489]
[1745507524587,6.60589245,151.38,151.3,1.798]
[1745507524784,26.80459489,151.31,151.3,1.798]
[1745507527801,14.48,151.33,151.3,1.798]
[1745507527985,41.28459489,151.33,151.3,8.40733325]
[1745507528189,26.80459489,151.34,151.3,35.21192814]
[1745507528382,26.80459489,151.35,151.31,26.80459489]
[1745507528904,16.0547,151.38,151.3,8.40733325]
[1745507528905,26.80459489,151.36,151.3,8.40733325]
[1745507529091,26.80459489,151.36,151.32,33.41274464]
[1745507529397,26.80459489,151.37,151.32,33.41274464]
[1745507529599,42.85929489,151.38,151.33,26.80459489]
[1745507529788,42.85929489,151.38,151.35,26.80459489]
[1745507529789,14.48,151.38,151.35,26.80459489]
[1745507530380,1.5381,151.42,151.36,26.80459489]
[1745507530693,28.34269489,151.42,151.38,26.80459489]